{"text_format":"5","workbook":"xlsx","n_sheets":3,"sheets":["Sheet1","Visibility Materials","Sheet2"],"not_rendered":{"defined_names":2,"pivot_tables":1},"read":"whole","date_system":"1900"}

{"sheet":"Sheet1","index":0,"n_rows":6,"n_cols":2,"rows_kept":6,"hidden":true}
["Faza","(Multiple Items)"]
[]
["Row Labels","Count of Emri i objektit arsimor"]
["Completed",2]
["Not started",39]
["Grand Total",41]

{"sheet":"Visibility Materials","index":1,"n_rows":53,"n_cols":16,"rows_kept":53,"merged":[[1,0,1,2]]}
[]
[{"$nulls":5},"Model 1","Model 2","Model 3","Model 4","Model 5","Model 6","Model 7","Model 8","Model 9","Model 10","Model 11"]
["Nr","Education Facility","Address","Location","*Expected Delivery Date","\"Before & After\" table, forex 5mm (dimensions 1.7x1.7 m)                       ","Plexiglass Table, forex 5mm (dimensions 80x60)","Plexiglass Table, forex 5mm (dimensions 60x40 cm)","National Anthem table, forex 5mm            (dimensions 60x80 cm)","\"Earthquake\" table, forex 5 mm                         (dimensions 68x48 cm)","Table with A4 & A3 plexiglass pockets (dimensions         1.5x1 m)","\"Hardware & Software\" table, forex 5mm (dimensions 80x60 cm) ","\"Computer Networks\" table, forex 5 mm                  (dimensions              80x60 cm)","\"Marie Curie\" table, forex 5 mm (dimensions 80x60  cm)","\"Mendelev\" table, forex 5mm,                     (dimensions 80x60 cm)","\"EU4Schools\" table with letters,                       forex 8 mm        (dimensions 2.5x0.37 m)"]
[1,"Gjimnazi \"Dhosi Liperi\"","Sukth, Durrës","Dhosi Liperi","2022-08-22",1,1,null,1,2,4,1,1,1,1,1]
[2,"Shkolla e Mesme e Bashkuar \"Ramazan Karaj\"","Nikel, Krujë","Ramazan Karaj ","2023-01-22",1,2,null,2,2,6,1,1,1,1,1]
[3,"Kopshti Nr. 2","Kurbin","Kopshti nr.2","2022-07-22",1,null,1,1,2,2,{"$nulls":4},1]
[4,"Shkolla 9 - vjeçare dhe kopshti \"Eftali Koçi\"","Durrës","Eftali Koçi","2023-01-23",1,1,1,2,2,4,1,1,1,1,1]
[5,"Çerdhja No. 3","Durrës","Creche No.3","2022-07-22",1,null,1,1,2,1]
[6,"Konvikti \"Bernardina Qerraxhi\"","Durrës","Bernardina Qerraxhi","2023-04-30",1,1,null,1,2,2,{"$nulls":4},1]
[7,"Gjimnazi \"Gjergj Kastrioti\"","Durrës","Gjergj Kastrioti","2023-04-30",1,1,null,1,2,8,1,1,1,1,1]
[8,"Gjimnazi \"Naim Frashëri\"","Durrës","Naim Frashëri","2023-04-30",1,1,null,1,2,8,1,1,1,1,1]
[9,"Gjimnazi \"Olsi Lasko\"","Shkozet, Durrës","Olsi Lasko","2023-01-15",1,1,null,1,2,6,1,1,1,1,1]
[10,"Kopshti Bizë","Ishem, Durrës","Fshati Bizë","2022-12-22",1,null,1,1,2,1]
[11,"Shkolla e Mesme Profesionale \"Bernardina Qerraxhi\"","Rajoni 4, Durrës","Bernardina Qerraxhi","2023-04-30",1,2,null,1,2,8,1,1,1,1,1]
[12,"Shkolla 9 - vjeçare \"Ibrahim Basha\"","Bulqesh, Kamëz","Ibrahim Basha","2023-01-30",1,1,null,1,2,4,1,1,1,1,1]
[13,"Çerdhja Kamëz","Kamëz","Çerdhe Kamëz","2022-08-22",1,null,1,1,2,1,{"$nulls":4},1]
[14,"Kopshti \"Azem Hajdari\"","Paskuqan, Kamëz","Azem Hajdari","2023-04-30",1,null,1,1,2,2,{"$nulls":4},1]
[15,"Shkolla 9 - vjeçare & kopshti \"3 Dëshmorët\"","Kavajë","3 Dëshmorët","2022-08-22",1,1,1,2,2,4,1,1,1,1,1]
[16,"Shkolla 9 - vjeçare Karpen","Karpen, Kavajë","Karpen","2022-08-22",1,1,null,1,2,4,1,1,1,1,1]
[17,"Shkolla e Mesme Profesionale \"Charles Telford Erickson\"","Golem, Kavajë","Charles Telford Erickson","2022-08-22",1,2,null,1,2,4,1,1,1,1,1]
[18,"Shkolla 9 - vjeçare \"Gjergj Kastrioti\"","Lezhë","Gjergj Kastrioti","2023-04-30",1,1,null,1,2,6,1,1,1,1,1]
[19,"Shkolla 9 - vjeçare dhe kopshti \"Fran Ivanaj\"","Ishull Shengjin, Lezhë","Fran Ivanaj","2023-01-23",1,1,1,2,2,4,1,1,1,1,1]
[20,"Kopshti, Çerdhja Rubik","Rubik, Mirditë","Rubik","2022-12-22",1,null,1,1,2,1,{"$nulls":4},1]
[21,"Shkolla 9 - vjeçare \"Xhorxh Soros\"","Rrogozhinë","Xhorxh Soros","2023-01-20",1,1,null,1,2,4,1,1,1,1,1]
[22,"Shkolla 9 - vjeçare dhe kopshti Kryevidh","Rrogozhinë","Kryevidh","2022-12-22",1,1,1,2,2,4,1,1,1,1,1]
[23,"Shkolla 9 - vjeçare dhe kopshti Rreth-Greth","Rrogozhinë","Rreth-Greth","2022-12-22",1,1,1,2,2,2,1,1,1,1,1]
[24,"Shkolla 9 - vjeçare dhe kopshti Vilë Bashtovë","Gose, Rrogozhinë","Vilë Bashtovë","2022-12-22",1,1,1,2,2,2,1,1,1,1,1]
[25,"Kopshti Okshtun","Rrogozhinë","Okshtun","2022-07-22",1,null,1,1,2,1]
[26,"Shkolla 9 - vjeçare dhe kopshti \"Rilindja\"","Shijak","Rilindja","2022-07-22",1,1,1,2,2,6,1,1,1,1,1]
[27,"Kopshti Nr. 2","Shijak","Kopshti Nr. 2","2022-07-22",1,null,1,1,2,2,{"$nulls":4},1]
[28,"Shkolla 9 - vjeçare \"26 Nëntori\"","Tiranë","26 Nëntori","2023-01-15",1,1,null,1,2,6,1,1,1,1,1]
[29,"Shkolla 9 - vjeçare \"Emin Duraku\"","Tiranë","Emin Duraku","2023-04-30",1,1,null,2,2,8,1,1,1,1,1]
[30,"Shkolla 9 - vjeçare \"Musine Kokalari\"","Tiranë","Musine Kokalari","2023-04-30",1,1,null,2,2,8,1,1,1,1,1]
[31,"Shkolla 9 - vjeçare \"Xhezmi Delli\"","Tiranë","Xhezmi Delli","2023-02-28",1,1,null,1,2,6,1,1,1,1,1]
[32,"Kopshti Nr. 41","Tiranë","Kopshti Nr. 41","2022-11-09",1,null,1,1,2,2]
[33,"Shkolla e Mesme Profesionale \"Asim Vokshi\"","Tiranë","Asim Vokshi","2023-03-06",1,1,null,1,2,6,1,1,1,1,1]
[34,"Shkolla 9 - vjeçare Bërxullë","Berxulle, Vorë","Bërxullë","2022-08-15",1,1,null,1,2,4,1,1,1,1,1]
[35,"Shkolla 9 - vjeçare Vorë","Vorë","Vorë","2022-08-15",1,1,null,1,2,4,1,1,1,1,1]
[36,"Shkolla 9 - vjeçare \"14 Nëntori\"","Durrës","14 Nëntori","2023-04-30",1,1,null,1,2,4,1,1,1,1,1]
[37,"Çerdhja No. 2","Durrës","Cerdhja Nr. 2","2023-02-28",1,null,1,1,2,1]
[38,"Konvikti \"Beqir Çela\"","Durrës","Beqir Çela","2023-04-30",1,1,null,1,2,2,{"$nulls":4},1]
[39,"Kopshti Manëz","Manez, Durrës","Kopshti Manez","2023-02-28",1,null,1,1,2,1,{"$nulls":4},1]
[40,"Gjimnazi \"Myslym Keta\"","Tiranë","Myslym Keta","2023-04-30",1,1,null,1,2,4,1,1,1,1,1]
[null,"EU4SCHOOLS PROGRAMME",null,"Total",null,{"$f":"SUM(F4:F43)","v":40},{"$f":"SUM(G4:G43)","v":32},18,50,80,157,27,27,27,27,35]
[41,"Shkolla 9-vjecare & kopshti \"Iliria\"","Fushe-Kruje, Kruje","Iliria","2022-08-22",1,1,1,2,2,6,1,1,1,1,1]
[null,"CROATIAN EDUCATION RECOVERY SUPPORT (CERS)",null,"Total",null,{"$f":"F45","v":1},{"$f":"G45","v":1},1,2,2,6,1,1,1,1,1]
[42,"Kopshti \"Isuf Ferra\"","Shkozet, Durres","Jusuf Hoti","2023-03-31",1,null,1,1,2,2,{"$nulls":4},1]
[43,"Shkolla e Mesme e Bashkuar \"Jusuf Hoti\"","Katund i Ri, Durres","Isuf Ferra","2023-03-31",1,2,null,2,2,8,1,1,1,1,1]
[44,"Shkolla 9-vjecare \"Zyber Sallaku\"","Manez, Durres","Zyber Sallaku","2023-03-31",1,1,null,1,2,4,1,1,1,1,1]
[null,"COMMUNITY INFRASTRUCTURE SUPPORT (CIS)",null,"Total",null,{"$f":"SUM(F47:F49)","v":3},{"$f":"SUM(G47:G49)","v":3},1,4,6,14,2,2,2,2,3]
[{"$nulls":3},"Total",null,{"$f":"F44+F46+F50","v":44},{"$f":"G44+G46+G50","v":36},20,56,88,177,30,30,30,30,39]
[]
[null,null,"*Delivery dates may vary based on actual completion of works.The contractor will be notified accordingly."]

{"sheet":"Sheet2","index":2,"n_rows":10,"n_cols":4,"rows_kept":10,"hidden":true}
[null,null,"No","Ed. Facilities"]
[null,"Civil Work Contract Signed",5,5]
[null,"Construction Permit ",2,2]
[null,"Construction works started",3,3]
[null,"HSE Training",1,1]
[null,"HSE Inspection ",6,6]
[null,"Place Check",2,2]
[null,"TAG Meetings",1,2]
[null,"Technical design approved",7,7]
[null,"eTendering processes",6,6]